bitfinex/quotes_SOLUSD_20250118
["timestamp","ask_amount","ask_price","bid_price","bid_amount"]
[1737233918590,18.13762782,248.09,248.08,112.60779934]
[1737233918789,0.063,248.34,248.22,20.0]
[1737233919092,0.063,248.34,248.29,20.0]
[1737233920473,0.063,248.34,248.31,20.0]
[1737233920676,0.063,248.34,248.33,20.0]
[1737233920996,0.063,248.34,248.32,18.72343393]
[1737233921370,0.063,248.34,248.33,20.0]
[1737233921682,0.063,248.34,248.32,22.82701959]
[1737233921878,0.063,248.34,248.33,8.56164491]
[1737233922079,0.063,248.48,248.39,20.0]
[1737233922276,0.063,248.48,248.47,18.72343393]
[1737233922877,0.063,248.48,248.47,27.28507884]
[1737233923075,0.063,248.48,248.45,18.72343393]
[1737233923276,0.063,248.48,248.47,18.72343393]
[1737233924192,0.063,248.48,248.38,28.55697678]
[1737233924382,0.063,248.48,248.45,18.72343393]
[1737233924580,0.063,248.48,248.47,38.72343393]
[1737233926580,0.063,248.48,248.45,18.72343393]
[1737233926993,0.063,248.48,248.47,18.72343393]
[1737233927886,0.063,248.48,248.47,23.72343393]
[1737233928093,30.44193393,248.69,248.53,20.0]
[1737233928308,9.6188,248.69,248.67,20.0]
[1737233928599,28.34223393,248.69,248.6,18.72343393]
[1737233928782,18.72343393,248.65,248.56,18.72343393]
[1737233928980,18.72343393,248.67,248.57,18.72343393]
[1737233929392,9.6188,248.69,248.64,20.0]
[1737233929586,9.6188,248.69,248.66,20.0]
[1737233930408,0.063,248.69,248.67,18.72343393]
[1737233930579,0.063,248.73,248.72,20.0]
[1737233930781,9.0701,248.88,248.76,20.0]
[1737233930990,9.0701,248.88,248.83,18.72343393]
[1737233931302,9.0701,248.88,248.81,18.72343393]
[1737233931598,18.72343393,248.87,248.77,18.72343393]
[1737233931804,19.47689573,248.87,248.77,18.72343393]
[1737233931981,18.72343393,248.81,248.73,18.72343393]
[1737233932181,18.72343393,248.81,248.71,18.72343393]
[1737233932790,18.72343393,248.81,248.73,18.72343393]
[1737233933084,0.063,248.84,248.81,20.0]
[1737233933286,0.063,248.84,248.83,20.0]
[1737233933484,0.063,248.84,248.83,50.23491631]
[1737233936796,0.063,248.84,248.79,30.23491631]
[1737233936994,0.063,248.84,248.81,30.23491631]
[1737233937197,0.063,248.84,248.77,30.23491631]
[1737233937498,0.063,248.84,248.75,30.23491631]
[1737233937801,30.23491631,248.81,248.73,30.23491631]
[1737233938098,30.23491631,248.81,248.64,30.23491631]
[1737233938099,30.23491631,248.81,248.71,30.23491631]
[1737233938877,30.23491631,248.77,248.67,30.23491631]
[1737233939095,41.66761631,248.8,248.71,30.23491631]
[1737233939302,41.66761631,248.8,248.69,30.23491631]
[1737233939484,41.66761631,248.8,248.72,20.0]
[1737233939694,41.66761631,248.8,248.69,30.23491631]
[1737233939894,23.776884,248.77,248.67,30.23491631]
[1737233940196,30.23491631,248.74,248.68,20.0]
[1737233940399,30.23491631,248.76,248.65,30.23491631]
[1737233940585,30.23491631,248.76,248.67,30.23491631]
[1737233940787,30.23491631,248.78,248.7,20.0]
[1737233941001,30.23491631,248.78,248.67,30.23491631]
[1737233941198,11.4327,248.8,248.73,30.23491631]
[1737233941390,11.4327,248.8,248.76,50.23491631]
[1737233941702,11.4327,248.8,248.77,20.0]
[1737233942580,11.4327,248.8,248.74,30.23491631]
[1737233942581,30.23491631,248.79,248.44,55.54]
[1737233942787,30.23491631,248.73,248.64,30.23491631]
[1737233942983,30.23491631,248.75,248.64,30.23491631]
[1737233943189,30.23491631,248.73,248.64,30.23491631]
[1737233943389,30.23491631,248.73,248.62,30.23491631]
[1737233943592,24.53079591,248.72,248.62,30.23491631]
[1737233943795,30.23491631,248.71,248.65,20.0]
[1737233944102,30.23491631,248.69,248.6,30.23491631]
[1737233944303,30.23491631,248.71,248.6,30.23491631]
[1737233944605,30.23491631,248.69,248.63,20.0]
[1737233944801,30.23491631,248.75,248.67,20.0]
[1737233945102,30.23491631,248.77,248.7,20.0]
[1737233945307,30.23491631,248.75,248.68,20.0]
[1737233945906,30.23491631,248.77,248.68,20.0]
[1737233946206,30.23491631,248.79,248.71,30.23491631]
[1737233946520,30.23491631,248.83,248.72,30.23491631]
[1737233946911,30.23491631,248.83,248.75,20.0]
[1737233947309,30.23491631,248.83,248.77,20.0]
[1737233947496,0.063,248.84,248.77,20.0]
[1737233948809,0.063,248.84,248.83,20.0]
[1737233949696,0.063,248.84,248.82,30.23491631]
[1737233951616,0.75305548,249.11,248.86,20.0]
[1737233951816,30.23491631,249.1,248.99,30.23491631]
[1737233952002,0.75288751,249.16,248.99,30.23491631]
[1737233952003,30.23491631,249.08,248.99,30.23491631]
[1737233952199,30.23491631,249.08,249.02,20.0]
[1737233952515,30.23491631,249.11,249.02,50.23491631]
[1737233952816,30.23491631,249.13,249.02,50.23491631]
[1737233953014,12.0158,249.17,248.92,20.0]
[1737233953216,30.23491631,249.14,249.04,30.23491631]
[1737233953511,30.23491631,249.14,249.07,20.0]
[1737233955407,30.98748268,249.16,249.09,20.0]
[1737233955722,12.0158,249.17,249.11,20.0]
[1737233956096,33.32696978,249.23,249.17,20.0]
[1737233956316,30.23491631,249.21,249.17,20.0]
[1737233956521,32.57441631,249.23,249.17,20.0]
[1737233956814,32.57441631,249.23,249.15,20.0]
[1737233956815,23.776884,249.2,249.15,20.0]
[1737233957108,30.23491631,249.21,249.13,20.0]
[1737233957311,2.3395,249.23,249.05,30.23491631]
[1737233957312,30.23491631,249.15,249.05,30.23491631]
[1737233957500,30.23491631,249.17,249.07,30.23491631]
[1737233957696,30.23491631,249.17,249.1,20.0]
[1737233958818,30.23491631,249.17,249.07,30.23491631]
[1737233959208,30.23491631,249.21,249.12,20.0]
[1737233959413,18.5736789,249.18,249.1,18.5736789]
[1737233959627,18.5736789,249.18,249.11,20.0]
[1737233960005,2.3912,249.03,248.7,11.2929]
[1737233960311,18.5736789,248.89,248.77,48.5736789]
[1737233960616,18.5736789,248.83,248.71,18.5736789]
[1737233960814,0.7535609,248.82,248.71,18.5736789]
[1737233961140,18.5736789,248.81,248.63,0.03]
[1737233961308,18.5736789,248.75,248.64,18.5736789]
[1737233961508,18.5736789,248.77,248.66,18.5736789]
[1737233962012,18.5736789,248.79,248.71,20.0]
[1737233962217,18.5736789,248.81,248.71,18.5736789]
[1737233962905,0.7536348,248.87,248.73,18.5736789]
[1737233963219,18.5736789,248.83,248.78,20.0]
[1737233963405,30.27268985,248.82,248.78,20.0]
[1737233964229,30.27268985,248.8,248.67,30.27268985]
[1737233964414,30.27268985,248.77,248.65,30.27268985]
[1737233964724,0.75381892,248.76,248.65,30.27268985]
[1737233964919,30.27268985,248.77,248.68,20.0]
[1737233965107,0.75380642,248.76,248.68,20.0]
[1737233965408,30.52652425,248.77,248.63,0.03]
[1737233965604,30.27268985,248.73,248.63,0.03]
[1737233965822,30.27268985,248.71,248.63,0.03]
[1737233966030,30.27268985,248.69,248.63,0.03]
[1737233966233,23.776884,248.64,248.63,0.03]
[1737233966725,59.04957385,248.64,248.47,0.03]
[1737233966927,30.27268985,248.57,248.48,30.27268985]
[1737233967121,30.27268985,248.57,248.47,0.03]
[1737233968202,30.27268985,248.59,248.51,20.0]
[1737233968406,23.776884,248.6,248.55,20.0]
[1737233968407,0.75434439,248.6,248.55,20.0]
[1737233968606,30.27268985,248.59,248.55,20.0]
[1737233968815,23.776884,248.63,248.47,0.03]
[1737233969041,30.27268985,248.6,248.52,20.0]
[1737233970207,30.27268985,248.6,248.54,20.0]
[1737233971811,30.27268985,248.68,248.62,20.0]
[1737233972121,30.27268985,248.68,248.58,30.27268985]
[1737233972431,30.27268985,248.62,248.52,30.27268985]
[1737233972904,30.27268985,248.62,248.55,20.0]
[1737233973104,23.776884,248.59,248.5,30.27268985]
[1737233973305,24.53124278,248.59,248.5,30.27268985]
[1737233973530,24.53124278,248.59,248.47,0.03]
[1737233973531,23.776884,248.55,248.47,0.03]
[1737233973831,0.7544389,248.54,248.47,20.03]
[1737233974008,30.27268985,248.58,248.51,20.0]
[1737233974403,33.88408985,248.6,248.53,20.0]
[1737233975109,3.6114,248.6,248.57,20.0]
[1737233976609,0.063,248.62,248.56,30.27268985]
[1737233976809,0.063,248.62,248.59,20.0]
[1737233977824,30.27268985,248.61,248.52,30.30268985]
[1737233978010,30.27268985,248.61,248.55,20.0]
[1737233980641,30.27268985,248.61,248.39,0.03]
[1737233980642,5.0,248.46,248.39,0.03]
[1737233980937,30.27268985,248.43,248.39,0.03]
[1737233981131,0.75489234,248.42,248.39,0.03]
[1737233981337,0.75489234,248.47,248.39,0.03]
[1737233981516,23.776884,248.46,248.39,0.03]
[1737233981716,3.6114,248.5,248.4,30.27268985]
[1737233982324,4.3659774,248.5,248.4,30.27268985]
[1737233982517,3.6114,248.5,248.4,30.27268985]
[1737233982714,3.6114,248.5,248.43,20.0]
[1737233983539,30.27268985,248.55,248.47,20.0]
[1737233984216,23.776884,248.55,248.49,20.0]
[1737233985323,0.75442902,248.56,248.49,20.0]
[1737233985528,30.27268985,248.57,248.49,20.0]
[1737233986638,31.02705359,248.59,248.51,20.0]
[1737233988542,31.02705359,248.59,248.51,20.03]
[1737233989544,19.41953425,248.59,248.51,20.03]
[1737233992342,23.776884,248.58,248.51,20.03]
[1737233992639,23.776884,248.54,248.51,0.03]
[1737233992841,23.776884,248.52,248.51,0.03]
[1737233993143,23.776884,248.49,248.39,0.03]
[1737233993348,18.66517051,248.42,248.39,0.03]
[1737233993549,18.66517051,248.46,248.39,0.03]
[1737233993844,0.75468136,248.45,248.39,0.03]
[1737233994018,23.776884,248.44,248.39,0.03]
[1737233994527,42.44205451,248.44,248.39,0.03]
[1737233995751,18.66517051,248.42,248.39,0.03]
[1737233995917,42.44205451,248.4,248.39,0.03]
[1737233998025,43.19711391,248.4,248.39,0.03]
[1737233998229,19.42022991,248.4,248.39,0.03]
[1737233998429,0.75505964,248.46,248.39,0.03]
[1737233998646,18.66517051,248.49,248.39,18.69517051]
[1737233998841,0.75470497,248.48,248.39,0.03]
[1737233999032,18.66517051,248.47,248.39,0.03]
[1737233999230,23.776884,248.45,248.39,0.03]
[1737233999738,42.44205451,248.43,248.39,0.03]
[1737234000122,18.66517051,248.45,248.39,0.03]
[1737234000323,18.66517051,248.47,248.39,0.03]
[1737234000535,19.41994409,248.51,248.42,20.0]
[1737234000737,19.41994409,248.51,248.39,0.03]
[1737234000738,18.66517051,248.51,248.44,20.0]
[1737234000948,18.66517051,248.53,248.43,18.66517051]
[1737234001340,18.66517051,248.53,248.46,20.0]
[1737234001649,18.66517051,248.51,248.46,20.0]
[1737234001952,18.66517051,248.55,248.48,20.0]
[1737234002244,0.063,248.62,248.54,18.66517051]
[1737234002448,19.48236943,248.62,248.5,18.66517051]
[1737234002639,18.66517051,248.6,248.5,18.66517051]
[1737234002841,0.75436177,248.59,248.5,18.66517051]
[1737234003141,0.75436177,248.59,248.53,20.0]
[1737234003337,0.75436177,248.59,248.48,18.66517051]
[1737234003338,0.063,248.62,248.6,20.0]
[1737234003531,0.063,248.62,248.42,12.6331]
[1737234003532,0.063,248.62,248.61,20.0]
[1737234003733,0.063,248.62,248.61,38.66517051]
[1737234005431,18.66517051,248.8,248.72,20.0]
[1737234005632,18.66517051,248.74,248.63,18.66517051]
[1737234005937,23.776884,248.7,248.61,18.66517051]
[1737234006245,23.776884,248.68,248.59,18.66517051]
[1737234006579,42.44205451,248.66,248.57,18.66517051]
[1737234006734,0.75422502,248.65,248.55,18.66517051]
[1737234006932,23.776884,248.57,248.48,18.66517051]
[1737234007137,0.75450589,248.57,248.5,18.66517051]
[1737234007832,0.75450589,248.57,248.41,12.6331]
[1737234008030,23.776884,248.56,248.49,18.66517051]
[1737234008231,0.75453911,248.55,248.49,18.66517051]
[1737234008426,23.776884,248.56,248.49,18.66517051]
[1737234008733,0.75450654,248.55,248.49,18.66517051]
[1737234008943,28.44247332,248.58,248.47,18.66517051]
[1737234009155,28.44247332,248.58,248.39,0.03]
[1737234009156,23.776884,248.53,248.43,18.66517051]
[1737234009328,23.776884,248.51,248.44,30.34393017]
[1737234009531,10.0,248.4,248.26,16.131302]
[1737234009730,23.776884,248.28,248.26,0.03]
[1737234010043,0.75534867,248.28,248.26,0.03]
[1737234010240,30.34393017,248.35,248.26,0.03]
[1737234010444,4.0256,248.41,248.29,20.0]
[1737234010651,30.34393017,248.36,248.29,20.0]
[1737234010864,0.75513232,248.35,248.29,20.0]
[1737234011153,23.776884,248.34,248.26,30.37393017]
[1737234011539,23.776884,248.32,248.26,0.03]
[1737234011739,30.34393017,248.35,248.26,0.03]
[1737234011960,30.34393017,248.37,248.26,30.37393017]
[1737234012134,0.75507905,248.36,248.26,30.37393017]
[1737234012850,54.12081417,248.35,248.26,0.03]
[1737234013156,30.34393017,248.33,248.26,0.03]
[1737234013354,30.34393017,248.35,248.26,0.03]
[1737234013552,0.75511721,248.39,248.27,20.03]
[1737234013752,0.75492742,248.43,248.34,30.34393017]
[1737234014142,0.7548378,248.48,248.41,20.0]
[1737234014343,30.34393017,248.49,248.41,20.0]
[1737234014754,23.776884,248.44,248.34,30.34393017]
[1737234014948,0.75486192,248.43,248.34,30.34393017]
[1737234015260,24.5317309,248.44,248.37,20.0]
[1737234016158,24.5317309,248.44,248.39,20.0]
[1737234016356,30.34393017,248.49,248.41,20.0]
[1737234016662,30.34393017,248.46,248.35,30.34393017]
[1737234016864,30.34393017,248.46,248.38,20.0]
[1737234017160,0.75475623,248.45,248.4,20.0]
[1737234017457,23.776884,248.45,248.35,30.34393017]
[1737234018264,0.75478045,248.44,248.38,20.0]
[1737234018470,0.75478045,248.44,248.28,30.34393017]
[1737234018666,0.75478045,248.44,248.34,30.34393017]
[1737234018868,30.34393017,248.46,248.36,30.34393017]
[1737234019061,30.34393017,248.48,248.38,30.34393017]
[1737234019253,24.53162002,248.47,248.38,30.34393017]
[1737234019452,24.53162002,248.47,248.41,20.0]
[1737234020062,24.53158821,248.47,248.41,20.0]
[1737234021367,30.34393017,248.42,248.32,30.34393017]
[1737234021572,23.776884,248.43,248.32,30.34393017]
[1737234021752,23.776884,248.39,248.3,30.34393017]
[1737234021955,23.776884,248.31,248.27,0.03]
[1737234022153,54.12081417,248.28,248.27,0.03]
[1737234023166,30.34393017,248.3,248.27,0.03]
[1737234023377,0.75520869,248.29,248.27,0.03]
[1737234023562,30.34393017,248.3,248.27,0.03]
[1737234023951,30.34393017,248.32,248.27,0.03]
[1737234024265,23.776884,248.33,248.27,0.03]
[1737234024444,23.776884,248.31,248.27,0.03]
[1737234024652,30.34393017,248.32,248.27,0.03]
[1737234024852,30.34393017,248.34,248.27,0.03]
[1737234025052,0.75516631,248.33,248.27,0.03]
[1737234025453,0.75504135,248.33,248.27,0.03]
[1737234026254,30.34393017,248.36,248.28,20.0]
[1737234026968,30.34393017,248.36,248.27,0.03]
[1737234026969,30.34393017,248.4,248.31,30.34393017]
[1737234027169,30.34393017,248.43,248.31,30.34393017]
[1737234027470,30.34393017,248.43,248.33,30.34393017]
[1737234028559,30.34393017,248.43,248.36,20.0]
[1737234028758,30.34393017,248.46,248.38,20.0]
[1737234029855,0.75465821,248.49,248.4,30.34393017]
[1737234030059,30.34393017,248.54,248.47,20.0]
[1737234030267,0.75446898,248.53,248.47,20.0]
[1737234030578,30.34393017,248.52,248.47,20.0]
[1737234030759,30.34393017,248.52,248.45,20.0]
[1737234031761,23.776884,248.53,248.47,20.0]
[1737234031964,30.34393017,248.56,248.47,20.0]
[1737234032454,30.34393017,248.56,248.49,20.0]
[1737234033073,0.7544361,248.58,248.48,30.34393017]
[1737234033074,31.09836627,248.58,248.48,30.34393017]
[1737234034158,0.063,248.59,248.4,35.34393017]
[1737234034159,0.063,248.59,248.57,30.34393017]
[1737234034858,0.063,248.59,248.58,5.0]
[1737234035051,0.75383491,248.76,248.6,20.0]
[1737234035258,31.09778289,248.77,248.65,30.34393017]
[1737234035457,30.34393017,248.77,248.65,30.34393017]
[1737234035867,0.5,248.8,248.65,40.34393017]
[1737234036079,0.5,248.8,248.7,20.0]
[1737234036372,0.5,248.8,248.78,30.34393017]
[1737234036776,0.5,248.8,248.79,30.34393017]
[1737234037462,0.063,248.87,248.82,20.0]
[1737234037773,0.063,248.87,248.85,5.0]
[1737234038070,31.09701849,249.06,248.85,5.0]
[1737234038071,31.09701849,249.06,248.86,80.68786034]
[1737234038277,0.75296604,249.11,249.06,20.0]
[1737234038466,0.75296604,249.11,249.03,30.34393017]
[1737234038467,0.75277133,249.11,249.03,30.34393017]
[1737234038673,31.0967015,249.11,249.01,30.34393017]
[1737234038865,30.34393017,249.13,249.06,20.0]
[1737234039071,30.34393017,249.08,248.92,30.34393017]
[1737234039259,23.776884,248.96,248.82,30.34393017]
[1737234039579,23.776884,248.96,248.72,3.4842]
[1737234039580,30.34393017,248.89,248.78,30.34393017]
[1737234039780,30.34393017,248.96,248.88,20.0]
[1737234039968,30.34393017,248.99,248.88,50.34393017]
[1737234040165,30.34393017,248.97,248.88,20.0]
[1737234040378,30.34393017,248.99,248.93,20.0]
[1737234040684,30.34393017,249.03,248.95,20.0]
[1737234040876,30.34393017,249.01,248.95,20.0]
[1737234041076,0.063,249.05,248.95,20.0]
[1737234041275,30.34393017,249.03,248.97,20.0]
[1737234041576,0.063,249.05,248.99,20.0]
[1737234041881,0.063,249.05,249.01,20.0]
[1737234042480,30.34393017,249.03,248.92,30.34393017]
[1737234042673,30.34393017,249.01,248.9,30.34393017]
[1737234042873,30.34393017,249.03,248.92,30.34393017]
[1737234043068,30.34393017,249.03,248.95,20.0]
[1737234043270,24.52990735,249.02,248.95,20.0]
[1737234043471,24.52990735,249.02,248.94,30.34393017]
[1737234043676,0.063,249.05,248.97,50.34393017]
[1737234043978,0.063,249.05,249.02,20.0]
[1737234044184,31.15994341,249.05,249.02,20.0]
[1737234044364,35.17524341,249.05,248.98,20.0]
[1737234044680,23.776884,249.04,248.98,20.0]
[1737234044879,0.75298315,249.03,248.98,20.0]
[1737234045778,0.063,249.05,249.02,20.0]
[1737234045972,0.063,249.05,248.97,30.34393017]
[1737234046182,23.776884,249.04,248.97,30.34393017]
[1737234046365,0.063,249.05,249.0,20.0]
[1737234046567,23.839884,249.05,249.0,20.0]
[1737234047093,0.75293009,249.04,249.0,20.0]
[1737234047382,0.063,249.05,248.97,30.34393017]
[1737234047567,0.063,249.05,249.02,20.0]
[1737234048275,0.063,249.05,249.04,20.0]
[1737234048477,23.839884,249.05,248.93,30.34393017]
[1737234048678,23.776884,249.02,248.93,30.34393017]
[1737234048873,0.063,249.05,249.03,20.0]
[1737234049282,0.81597446,249.05,248.96,30.34393017]
[1737234049487,4.83117446,249.05,248.91,30.34393017]
[1737234049685,23.776884,249.0,248.91,30.34393017]
[1737234050078,0.75308956,249.02,248.91,30.34393017]
[1737234050280,30.40693017,249.05,248.95,30.34393017]
[1737234050487,0.063,249.05,249.0,20.0]
[1737234050788,23.776884,249.02,248.92,30.34393017]
[1737234050988,23.776884,249.0,248.92,30.34393017]
[1737234051182,0.75307154,249.02,248.94,30.34393017]
[1737234051390,0.75303619,249.02,248.97,20.0]
[1737234051692,23.776884,248.98,248.9,30.34393017]
[1737234051886,30.34393017,249.03,248.92,30.34393017]
[1737234052192,23.776884,249.01,248.92,30.34393017]
[1737234052397,0.75307519,249.0,248.95,20.0]
[1737234052577,23.776884,248.99,248.9,30.34393017]
[1737234052781,23.776884,248.97,248.88,30.34393017]
[1737234053179,23.776884,248.97,248.93,20.0]
[1737234053375,30.34393017,248.94,248.84,30.34393017]
[1737234053574,30.34393017,248.87,248.7,13.1239]
[1737234053789,30.34393017,248.87,248.63,48.4]
[1737234053790,24.53048079,248.86,248.61,13.1239]
[1737234053979,30.34393017,248.85,248.74,30.34393017]
[1737234054179,27.793984,248.93,248.77,20.0]
[1737234054375,23.776884,248.86,248.76,30.34393017]
[1737234054681,30.34393017,249.01,248.87,20.0]
[1737234054876,30.34393017,248.97,248.94,20.0]
[1737234055081,0.75323282,248.96,248.94,20.0]
[1737234055387,30.34393017,249.01,248.94,20.0]
[1737234055992,30.34393017,249.03,248.96,20.0]
[1737234056491,23.776884,249.0,248.89,30.34393017]
[1737234056698,31.09717998,248.99,248.87,30.34393017]
[1737234056899,31.09717998,248.99,248.9,20.0]
[1737234057480,31.09717998,248.99,248.76,34.92393017]
[1737234057481,30.34393017,249.03,248.93,30.34393017]
[1737234057681,23.776884,249.0,248.89,30.34393017]
[1737234057884,23.776884,248.98,248.92,20.0]
[1737234058180,30.34393017,249.01,248.94,20.0]
[1737234058378,30.34393017,248.99,248.88,30.34393017]
[1737234058881,30.34393017,248.99,248.91,20.0]
[1737234059097,0.75314683,248.98,248.91,20.0]
[1737234059298,30.34393017,249.01,248.93,20.0]
[1737234059603,0.75309363,249.0,248.97,20.0]
[1737234059781,30.34393017,248.99,248.85,30.34393017]
[1737234059981,23.776884,248.95,248.83,30.34393017]
[1737234060179,30.34393017,248.9,248.71,13.057]
[1737234060380,30.34393017,249.0,248.67,5.0]
[1737234060381,0.753544,248.89,248.79,30.34393017]
[1737234060601,30.34393017,248.94,248.82,30.34393017]
[1737234060790,30.34393017,248.88,248.87,0.03]
[1737234060990,54.12081417,248.88,248.87,0.03]
[1737234061594,88.48274434,248.88,248.87,0.03]
[1737234061778,89.23649185,248.88,248.87,0.03]
[1737234061980,58.89256168,248.88,248.87,0.03]
[1737234062781,54.87456168,248.88,248.87,0.03]
[1737234063679,5.0,248.95,248.87,0.03]
[1737234063680,0.75359296,248.97,248.87,0.03]
[1737234063882,30.34393017,248.96,248.87,20.03]
[1737234064082,30.34393017,249.0,248.91,20.0]
[1737234064292,0.75313995,248.99,248.93,20.0]
[1737234064488,0.75313995,248.99,248.95,20.0]
[1737234064697,0.063,249.05,248.97,20.0]
[1737234064899,0.063,249.05,249.01,20.0]
[1737234065097,0.063,249.05,249.04,20.0]
[1737234065399,0.063,249.05,249.04,50.34393017]
[1737234066509,30.34393017,249.26,249.06,5.0]
[1737234066681,31.09637036,249.28,249.19,30.34393017]
[1737234066887,30.34393017,249.24,249.15,30.34393017]
[1737234067097,30.34393017,249.28,249.2,20.0]
[1737234067304,0.75229333,249.27,249.22,20.0]
[1737234067591,0.75230009,249.26,249.17,30.34393017]
[1737234067787,0.75230009,249.26,249.2,20.0]
[1737234069006,30.34393017,249.27,249.2,20.0]
[1737234069804,30.34393017,249.29,249.22,20.0]
[1737234069987,0.75228784,249.28,249.22,20.0]
[1737234070493,30.34393017,249.25,249.15,30.34393017]
[1737234070700,30.34393017,249.21,249.11,30.34393017]
[1737234071007,23.776884,249.19,249.12,0.6020272]
[1737234071315,23.776884,249.17,249.12,20.0]
[1737234071501,23.776884,249.13,249.04,0.60202116]
[1737234071684,30.34393017,249.08,248.97,30.34393017]
[1737234071885,23.776884,249.05,248.95,30.34393017]
[1737234072084,23.776884,249.03,248.95,30.34393017]
[1737234072297,23.776884,249.01,248.95,30.34393017]
[1737234072499,23.776884,248.99,248.89,30.94634422]
[1737234072708,23.776884,248.97,248.89,30.34393017]
[1737234072907,23.776884,248.95,248.92,20.0]
[1737234073493,5.0,249.09,248.87,0.03]
[1737234073494,4.0144,249.1,248.96,20.0]
[1737234073698,23.776884,249.06,249.0,20.0]
[1737234073896,0.75298644,249.05,249.0,20.0]
[1737234074120,30.34393017,249.11,249.02,20.0]
[1737234074298,30.34393017,249.05,249.02,20.0]
[1737234074616,23.776884,249.02,248.91,30.9462]
[1737234074913,23.776884,248.98,248.89,30.34393017]
[1737234075099,0.75318484,248.97,248.9,0.60254787]
[1737234075283,30.34393017,249.01,248.94,20.0]
[1737234075484,23.776884,248.94,248.87,0.03]
[1737234075719,23.776884,248.92,248.87,0.03]
[1737234075895,30.34393017,248.97,248.88,20.0]
[1737234076094,23.776884,248.88,248.87,0.03]
[1737234076410,24.53041245,248.88,248.87,0.03]
[1737234076612,64.87434262,248.88,248.67,30.94690922]
[1737234076907,23.776884,248.68,248.59,30.34393017]
[1737234077115,30.34393017,248.63,248.54,0.60329208]
[1737234077291,5.0,248.73,248.54,0.60329208]
[1737234077292,30.34393017,248.69,248.58,30.34393017]
[1737234077494,0.75407235,248.68,248.6,30.34393017]
[1737234077702,30.34393017,248.73,248.62,30.37393017]
[1737234078004,0.75399249,248.77,248.71,30.34393017]
[1737234078305,23.776884,248.79,248.74,20.0]
[1737234078610,31.09774498,248.78,248.74,20.0]
[1737234078812,0.75381481,248.78,248.69,30.34393017]
[1737234078997,23.776884,248.75,248.65,30.34393017]
[1737234079203,23.776884,248.72,248.63,30.94695514]
[1737234079513,24.53083264,248.72,248.66,20.0]
[1737234079721,24.53083264,248.72,248.63,30.94695514]
[1737234080216,23.776884,248.68,248.62,0.03]
[1737234080388,23.776884,248.66,248.62,0.03]
[1737234080592,31.09819661,248.65,248.62,0.03]
[1737234080790,54.12081417,248.63,248.62,0.03]
[1737234081112,0.75431671,248.71,248.62,0.03]
[1737234081293,30.34393017,248.68,248.62,20.03]
[1737234081501,0.75413277,248.74,248.68,20.0]
[1737234081695,30.34393017,248.78,248.7,20.0]
[1737234081888,0.75376509,248.77,248.72,20.0]
[1737234082094,30.34393017,248.74,248.63,30.34393017]
[1737234082294,0.7539534,248.73,248.64,0.60316272]
[1737234082511,0.7539534,248.73,248.66,20.0]
[1737234082712,0.7539534,248.73,248.68,20.0]
[1737234082913,54.12081417,248.72,248.62,0.03]
[1737234083104,30.34393017,248.7,248.62,0.03]
[1737234083305,0.75409707,248.69,248.62,20.03]
[1737234083600,0.75409816,248.71,248.66,20.0]
[1737234083803,30.34393017,248.7,248.62,0.03]
[1737234084008,4.77438805,248.73,248.62,0.03]
[1737234084009,30.34393017,248.68,248.62,0.03]
[1737234084214,24.53105342,248.67,248.62,0.03]
[1737234084415,23.776884,248.66,248.62,0.03]
[1737234084595,23.776884,248.64,248.62,0.03]
[1737234084798,24.53108216,248.63,248.62,0.03]
[1737234085919,23.776884,248.55,248.46,30.34393017]
[1737234086117,23.776884,248.53,248.46,30.34393017]
[1737234086495,30.34393017,248.51,248.41,0.60338878]
[1737234086709,0.75466894,248.52,248.42,30.34393017]
[1737234086904,0.75466894,248.52,248.37,5.0]
[1737234086905,30.34393017,248.51,248.4,30.34393017]